[Event "Titled Tuesday Blitz February 21 Late 2023"]
[White "Deac, Bogdan-Daniel"]
[Black "Kravtsiv, Martyn"]
[WhiteFideId "1226380"]
[BlackFideId "14113147"]
[WhiteElo "2700"]
[BlackElo "2598"]
[Result "0-1"]
[Round "04"]
[TimeControl "180+2"]
[Date "2023.02.21"]
[WhiteClock "0:00:01"]
[BlackClock "0:00:07"]

1. c4 {[%clk 0:03:00]}  e6 {[%clk 0:02:59]} 2. g3 {[%clk 0:03:00]}  d5 {[%clk 0:02:59]} 3. Bg2 {[%clk 0:03:01]}  Nf6 {[%clk 0:02:59]} 4. Nf3 {[%clk 0:03:01]}  Be7 {[%clk 0:02:57]} 5. O-O {[%clk 0:03:00]}  O-O {[%clk 0:02:57]} 6. d3 {[%clk 0:03:00]}  d4 {[%clk 0:02:55]} 7. e3 {[%clk 0:02:59]}  c5 {[%clk 0:02:51]} 8. exd4 {[%clk 0:02:58]}  cxd4 {[%clk 0:02:51]} 9. Re1 {[%clk 0:02:57]}  Nc6 {[%clk 0:02:50]} 10. Na3 {[%clk 0:02:58]}  Nd7 {[%clk 0:02:45]} 11. Nc2 {[%clk 0:02:57]}  e5 {[%clk 0:02:44]} 12. b4 {[%clk 0:02:55]}  f6 {[%clk 0:02:43]} 13. Rb1 {[%clk 0:02:24]}  a5 {[%clk 0:02:41]} 14. a3 {[%clk 0:02:24]}  axb4 {[%clk 0:02:38]} 15. axb4 {[%clk 0:02:24]}  Ra2 {[%clk 0:02:35]} 16. Bd2 {[%clk 0:01:52]}  Nb6 {[%clk 0:02:19]} 17. b5 {[%clk 0:00:43]}  Nb8 {[%clk 0:02:18]} 18. Nb4 {[%clk 0:00:42]}  Ra7 {[%clk 0:02:17]} 19. Nh4 {[%clk 0:00:26]}  g5 {[%clk 0:01:22]} 20. Nf3 {[%clk 0:00:12]}  N8d7 {[%clk 0:01:21]} 21. h4 {[%clk 0:00:07]}  h6 {[%clk 0:01:21]} 22. hxg5 {[%clk 0:00:07]}  hxg5 {[%clk 0:01:22]} 23. Nh2 {[%clk 0:00:03]}  Nc5 {[%clk 0:00:56]} 24. Nd5 {[%clk 0:00:04]}  Nxd5 {[%clk 0:00:52]} 25. Bxd5+ {[%clk 0:00:03]}  Kg7 {[%clk 0:00:53]} 26. Bb4 {[%clk 0:00:04]}  Rh8 {[%clk 0:00:46]} 27. Bxc5 {[%clk 0:00:02]}  Bxc5 {[%clk 0:00:46]} 28. Ra1 {[%clk 0:00:01]}  Rxa1 {[%clk 0:00:41]} 29. Qxa1 {[%clk 0:00:02]}  Qd7 {[%clk 0:00:41]} 30. Qd1 {[%clk 0:00:01]}  Qh3 {[%clk 0:00:40]} 31. Nf1 {[%clk 0:00:02]}  Bb4 {[%clk 0:00:35]} 32. Qb1 {[%clk 0:00:02]}  Bxe1 {[%clk 0:00:33]} 33. Qxe1 {[%clk 0:00:03]}  Bf5 {[%clk 0:00:30]} 34. Qb4 {[%clk 0:00:03]}  Re8 {[%clk 0:00:21]} 35. Qd6 {[%clk 0:00:02]}  Bxd3 {[%clk 0:00:18]} 36. Qc7+ {[%clk 0:00:02]}  Kh6 {[%clk 0:00:17]} 37. Nd2 {[%clk 0:00:02]}  Qc8 {[%clk 0:00:13]} 38. Qf7 {[%clk 0:00:02]}  Rf8 {[%clk 0:00:13]} 39. Qe7 {[%clk 0:00:02]}  b6 {[%clk 0:00:12]} 40. Qd6 {[%clk 0:00:02]}  Qd8 {[%clk 0:00:11]} 41. Qe6 {[%clk 0:00:03]}  Bg6 {[%clk 0:00:11]} 42. f4 {[%clk 0:00:02]}  exf4 {[%clk 0:00:10]} 43. gxf4 {[%clk 0:00:03]}  gxf4 {[%clk 0:00:10]} 44. Nf3 {[%clk 0:00:02]}  Qe8 {[%clk 0:00:09]} 45. Qxb6 {[%clk 0:00:01]}  Qe3+ {[%clk 0:00:08]} 46. Kg2 {[%clk 0:00:02]}  Bh5 {[%clk 0:00:08]} 47. Qd6 {[%clk 0:00:01]}  Qe2+ {[%clk 0:00:07]} 48. Kh3 {[%clk 0:00:01]}  Qf1+ {[%clk 0:00:08]} 49. Kh2 {[%clk 0:00:01]}  Qf2+ {[%clk 0:00:08]} 50. Kh1 {[%clk 0:00:01]}  Bxf3+ {[%clk 0:00:07]} 0-1


[Site "https://www.chess.com"]

[Event "Titled Tuesday Blitz February 21 Late 2023"]
[White "Bortnyk, Olexandr"]
[Black "Gokerkan, Cem Kaan"]
[WhiteFideId "14120828"]
[BlackFideId "6336760"]
[WhiteElo "2605"]
[BlackElo "2500"]
[Result "1/2-1/2"]
[Round "04"]
[TimeControl "180+2"]
[Date "2023.02.21"]
[WhiteClock "0:00:03"]
[BlackClock "0:00:09"]

1. d4 {[%clk 0:03:00]}  Nf6 {[%clk 0:03:00]} 2. Nc3 {[%clk 0:03:00]}  d5 {[%clk 0:03:01]} 3. Bf4 {[%clk 0:03:00]}  a6 {[%clk 0:03:01]} 4. e3 {[%clk 0:03:00]}  b5 {[%clk 0:03:01]} 5. a3 {[%clk 0:03:00]}  e6 {[%clk 0:02:57]} 6. Nf3 {[%clk 0:02:56]}  c5 {[%clk 0:02:57]} 7. dxc5 {[%clk 0:02:54]}  Bxc5 {[%clk 0:02:56]} 8. Bd3 {[%clk 0:02:54]}  Bb7 {[%clk 0:02:55]} 9. O-O {[%clk 0:02:54]}  Nbd7 {[%clk 0:02:55]} 10. Qe2 {[%clk 0:02:53]}  O-O {[%clk 0:02:54]} 11. Rad1 {[%clk 0:02:35]}  Qe7 {[%clk 0:02:53]} 12. e4 {[%clk 0:02:35]}  dxe4 {[%clk 0:02:14]} 13. Nxe4 {[%clk 0:02:36]}  Nxe4 {[%clk 0:02:12]} 14. Bxe4 {[%clk 0:02:37]}  Bxe4 {[%clk 0:02:12]} 15. Qxe4 {[%clk 0:02:37]}  Nf6 {[%clk 0:02:11]} 16. Qe5 {[%clk 0:02:25]}  Rfd8 {[%clk 0:02:04]} 17. Bg5 {[%clk 0:02:08]}  Rxd1 {[%clk 0:01:47]} 18. Rxd1 {[%clk 0:02:09]}  Rd8 {[%clk 0:01:48]} 19. Re1 {[%clk 0:01:40]}  Qa7 {[%clk 0:00:40]} 20. Bxf6 {[%clk 0:01:26]}  Bxf2+ {[%clk 0:00:30]} 21. Kh1 {[%clk 0:01:25]}  gxf6 {[%clk 0:00:31]} 22. Qxf6 {[%clk 0:01:22]}  Rd5 {[%clk 0:00:32]} 23. Rf1 {[%clk 0:01:01]}  Rf5 {[%clk 0:00:32]} 24. Qd8+ {[%clk 0:00:54]}  Kg7 {[%clk 0:00:33]} 25. Qd2 {[%clk 0:00:51]}  Bd4 {[%clk 0:00:28]} 26. g4 {[%clk 0:00:44]}  Rf6 {[%clk 0:00:29]} 27. c3 {[%clk 0:00:36]}  Be3 {[%clk 0:00:29]} 28. Qe2 {[%clk 0:00:35]}  Rf4 {[%clk 0:00:26]} 29. h3 {[%clk 0:00:30]}  Qc5 {[%clk 0:00:25]} 30. Kg2 {[%clk 0:00:27]}  a5 {[%clk 0:00:23]} 31. Re1 {[%clk 0:00:28]}  Re4 {[%clk 0:00:21]} 32. Qd3 {[%clk 0:00:26]}  f5 {[%clk 0:00:14]} 33. Qd7+ {[%clk 0:00:26]}  Kg8 {[%clk 0:00:13]} 34. Rd1 {[%clk 0:00:22]}  Bh6 {[%clk 0:00:10]} 35. Qd8+ {[%clk 0:00:12]}  Bf8 {[%clk 0:00:11]} 36. Qg5+ {[%clk 0:00:10]}  Kh8 {[%clk 0:00:08]} 37. Qf6+ {[%clk 0:00:02]}  Kg8 {[%clk 0:00:09]} 38. Qg5+ {[%clk 0:00:02]}  Kh8 {[%clk 0:00:09]} 39. Nd4 {[%clk 0:00:03]}  Qd5 {[%clk 0:00:08]} 40. Qf6+ {[%clk 0:00:04]}  Kg8 {[%clk 0:00:08]} 41. Kg1 {[%clk 0:00:02]}  Bg7 {[%clk 0:00:08]} 42. Qe7 {[%clk 0:00:02]}  Bxd4+ {[%clk 0:00:08]} 43. cxd4 {[%clk 0:00:02]}  Rxd4 {[%clk 0:00:08]} 44. Qg5+ {[%clk 0:00:01]}  Kf7 {[%clk 0:00:08]} 45. Qh5+ {[%clk 0:00:02]}  Kg7 {[%clk 0:00:07]} 46. Qg5+ {[%clk 0:00:02]}  Kf7 {[%clk 0:00:08]} 47. Qh5+ {[%clk 0:00:03]}  Kf8 {[%clk 0:00:08]} 48. Qh6+ {[%clk 0:00:03]}  Kg8 {[%clk 0:00:09]} 49. Qg5+ {[%clk 0:00:03]}  Kf7 {[%clk 0:00:09]} 1/2-1/2


[Site "https://www.chess.com"]

[Event "Titled Tuesday Blitz February 21 Late 2023"]
[White "Bluebaum, Matthias"]
[Black "Samsonkin, Artiom"]
[WhiteFideId "24651516"]
[BlackFideId "13503111"]
[WhiteElo "2669"]
[BlackElo "2420"]
[Result "1-0"]
[Round "04"]
[TimeControl "180+2"]
[Date "2023.02.21"]
[WhiteClock "0:00:07"]
[BlackClock "0:00:06"]

1. d4 {[%clk 0:03:00]}  e6 {[%clk 0:02:57]} 2. c4 {[%clk 0:03:00]}  d5 {[%clk 0:02:58]} 3. Nc3 {[%clk 0:03:01]}  c5 {[%clk 0:02:58]} 4. cxd5 {[%clk 0:03:01]}  cxd4 {[%clk 0:02:58]} 5. Qa4+ {[%clk 0:03:00]}  Nd7 {[%clk 0:02:55]} 6. Qxd4 {[%clk 0:02:55]}  exd5 {[%clk 0:02:55]} 7. Qxd5 {[%clk 0:02:54]}  Ngf6 {[%clk 0:02:53]} 8. Qd1 {[%clk 0:02:54]}  Bc5 {[%clk 0:02:43]} 9. e3 {[%clk 0:02:54]}  O-O {[%clk 0:02:43]} 10. Nf3 {[%clk 0:02:55]}  Bb4 {[%clk 0:02:12]} 11. Bd2 {[%clk 0:02:53]}  Qe7 {[%clk 0:02:05]} 12. Be2 {[%clk 0:02:48]}  Rd8 {[%clk 0:02:00]} 13. O-O {[%clk 0:02:43]}  Ne5 {[%clk 0:01:42]} 14. Nd4 {[%clk 0:02:40]}  Bc5 {[%clk 0:01:31]} 15. Nb3 {[%clk 0:02:22]}  Bd6 {[%clk 0:01:26]} 16. h3 {[%clk 0:02:06]}  Be6 {[%clk 0:01:18]} 17. Nd4 {[%clk 0:02:05]}  Bc4 {[%clk 0:01:08]} 18. b3 {[%clk 0:01:59]}  Bd3 {[%clk 0:00:50]} 19. Bxd3 {[%clk 0:01:41]}  Nxd3 {[%clk 0:00:51]} 20. Qe2 {[%clk 0:01:37]}  Nc5 {[%clk 0:00:41]} 21. Nf5 {[%clk 0:01:28]}  Qe5 {[%clk 0:00:41]} 22. Nxd6 {[%clk 0:01:28]}  Rxd6 {[%clk 0:00:39]} 23. Nb5 {[%clk 0:01:24]}  Rd3 {[%clk 0:00:29]} 24. b4 {[%clk 0:01:22]}  Rad8 {[%clk 0:00:29]} 25. Bc3 {[%clk 0:01:22]}  Qe8 {[%clk 0:00:26]} 26. bxc5 {[%clk 0:00:52]}  Qxb5 {[%clk 0:00:27]} 27. Bd4 {[%clk 0:00:53]}  Qa6 {[%clk 0:00:24]} 28. Rad1 {[%clk 0:00:40]}  Ra3 {[%clk 0:00:16]} 29. Qf3 {[%clk 0:00:15]}  Ne8 {[%clk 0:00:10]} 30. Qg3 {[%clk 0:00:13]}  Qg6 {[%clk 0:00:06]} 31. Qf3 {[%clk 0:00:07]}  Rxa2 {[%clk 0:00:06]} 32. Qxb7 {[%clk 0:00:07]}  h5 {[%clk 0:00:05]} 33. c6 {[%clk 0:00:07]}  Rc2 {[%clk 0:00:05]} 34. Rc1 {[%clk 0:00:07]}  Rxc1 {[%clk 0:00:04]} 35. Rxc1 {[%clk 0:00:08]}  Nd6 {[%clk 0:00:05]} 36. Qe7 {[%clk 0:00:08]}  Rc8 {[%clk 0:00:05]} 37. Qd7 {[%clk 0:00:07]}  Nf5 {[%clk 0:00:06]} 38. Qxc8+ {[%clk 0:00:07]}  Kh7 {[%clk 0:00:07]} 39. Qd7 {[%clk 0:00:06]}  Nh4 {[%clk 0:00:07]} 40. Qd5 {[%clk 0:00:07]}  f5 {[%clk 0:00:06]} 41. c7 {[%clk 0:00:07]}  f4 {[%clk 0:00:07]} 42. c8=Q {[%clk 0:00:07]}  f3 {[%clk 0:00:08]} 43. Qcg8+ {[%clk 0:00:06]}  Kh6 {[%clk 0:00:07]} 44. Qh8+ {[%clk 0:00:07]}  Qh7 {[%clk 0:00:07]} 45. Bxg7+ {[%clk 0:00:07]}  Kg6 {[%clk 0:00:06]} 46. Qxh7+ {[%clk 0:00:07]} 1-0


[Site "https://www.chess.com"]

[Event "Titled Tuesday Blitz February 21 Late 2023"]
[White "Bikuzhin, Maksim"]
[Black "Sjugirov, Sanan"]
[WhiteFideId "24128015"]
[BlackFideId "4189302"]
[WhiteElo "2279"]
[BlackElo "2712"]
[Result "1/2-1/2"]
[Round "04"]
[TimeControl "180+2"]
[Date "2023.02.21"]
[WhiteClock "0:00:06"]
[BlackClock "0:00:05"]

1. e4 {[%clk 0:03:00]}  c5 {[%clk 0:02:59]} 2. Nc3 {[%clk 0:03:00]}  Nc6 {[%clk 0:02:59]} 3. f4 {[%clk 0:03:00]}  g6 {[%clk 0:02:58]} 4. Nf3 {[%clk 0:03:00]}  Bg7 {[%clk 0:02:59]} 5. Bb5 {[%clk 0:02:59]}  Nd4 {[%clk 0:02:57]} 6. Bd3 {[%clk 0:02:59]}  e6 {[%clk 0:02:52]} 7. Nxd4 {[%clk 0:02:59]}  cxd4 {[%clk 0:02:52]} 8. Nb5 {[%clk 0:02:59]}  d6 {[%clk 0:02:45]} 9. c3 {[%clk 0:02:58]}  dxc3 {[%clk 0:02:41]} 10. bxc3 {[%clk 0:02:57]}  Nf6 {[%clk 0:01:18]} 11. Ba3 {[%clk 0:02:57]}  O-O {[%clk 0:01:18]} 12. Nxd6 {[%clk 0:02:50]}  e5 {[%clk 0:01:13]} 13. O-O {[%clk 0:02:36]}  Bg4 {[%clk 0:00:50]} 14. Qe1 {[%clk 0:02:25]}  exf4 {[%clk 0:00:44]} 15. Rxf4 {[%clk 0:02:21]}  Be6 {[%clk 0:00:44]} 16. Qf1 {[%clk 0:02:13]}  Ng4 {[%clk 0:00:41]} 17. Nc4 {[%clk 0:01:46]}  Re8 {[%clk 0:00:25]} 18. h3 {[%clk 0:01:34]}  Ne5 {[%clk 0:00:25]} 19. Nxe5 {[%clk 0:01:34]}  Bxe5 {[%clk 0:00:26]} 20. Rf3 {[%clk 0:01:35]}  Qa5 {[%clk 0:00:22]} 21. Bb4 {[%clk 0:01:25]}  Qc7 {[%clk 0:00:20]} 22. Kh1 {[%clk 0:01:25]}  Red8 {[%clk 0:00:17]} 23. Qf2 {[%clk 0:01:04]}  b6 {[%clk 0:00:11]} 24. Bf1 {[%clk 0:00:58]}  a5 {[%clk 0:00:10]} 25. Ba3 {[%clk 0:00:56]}  Bg7 {[%clk 0:00:09]} 26. d4 {[%clk 0:00:53]}  Bc4 {[%clk 0:00:07]} 27. Bxc4 {[%clk 0:00:47]}  Qxc4 {[%clk 0:00:08]} 28. Qf1 {[%clk 0:00:38]}  Rac8 {[%clk 0:00:05]} 29. Qxc4 {[%clk 0:00:29]}  Rxc4 {[%clk 0:00:06]} 30. Raf1 {[%clk 0:00:30]}  Rd7 {[%clk 0:00:06]} 31. e5 {[%clk 0:00:24]}  Ra4 {[%clk 0:00:03]} 32. Bd6 {[%clk 0:00:20]}  Rxa2 {[%clk 0:00:03]} 33. c4 {[%clk 0:00:17]}  Rc2 {[%clk 0:00:02]} 34. c5 {[%clk 0:00:17]}  bxc5 {[%clk 0:00:03]} 35. dxc5 {[%clk 0:00:18]}  a4 {[%clk 0:00:03]} 36. Ra3 {[%clk 0:00:17]}  Rc4 {[%clk 0:00:03]} 37. Rfa1 {[%clk 0:00:16]}  Ra7 {[%clk 0:00:03]} 38. c6 {[%clk 0:00:17]}  Rxc6 {[%clk 0:00:03]} 39. Rxa4 {[%clk 0:00:17]}  Rxa4 {[%clk 0:00:03]} 40. Rxa4 {[%clk 0:00:18]}  Rc8 {[%clk 0:00:03]} 41. Kh2 {[%clk 0:00:17]}  Bh6 {[%clk 0:00:03]} 42. Re4 {[%clk 0:00:17]}  Re8 {[%clk 0:00:04]} 43. Kg3 {[%clk 0:00:16]}  Bg7 {[%clk 0:00:03]} 44. Kf4 {[%clk 0:00:16]}  Bh6+ {[%clk 0:00:04]} 45. Kg3 {[%clk 0:00:16]}  Bg5 {[%clk 0:00:04]} 46. Kf3 {[%clk 0:00:13]}  Bd8 {[%clk 0:00:03]} 47. Bc5 {[%clk 0:00:12]}  Bc7 {[%clk 0:00:03]} 48. Bd6 {[%clk 0:00:13]}  Bb6 {[%clk 0:00:04]} 49. Bb4 {[%clk 0:00:12]}  Kg7 {[%clk 0:00:02]} 50. Bd6 {[%clk 0:00:12]}  Re6 {[%clk 0:00:02]} 51. Re2 {[%clk 0:00:12]}  Bd8 {[%clk 0:00:03]} 52. Re4 {[%clk 0:00:12]}  Bg5 {[%clk 0:00:03]} 53. Re2 {[%clk 0:00:13]}  h5 {[%clk 0:00:03]} 54. g4 {[%clk 0:00:12]}  hxg4+ {[%clk 0:00:03]} 55. hxg4 {[%clk 0:00:13]}  Kg8 {[%clk 0:00:03]} 56. Re4 {[%clk 0:00:13]}  Re8 {[%clk 0:00:03]} 57. Rb4 {[%clk 0:00:12]}  Bh6 {[%clk 0:00:04]} 58. Rb8 {[%clk 0:00:12]}  Rxb8 {[%clk 0:00:03]} 59. Bxb8 {[%clk 0:00:13]}  Kf8 {[%clk 0:00:04]} 60. Ke4 {[%clk 0:00:11]}  Ke7 {[%clk 0:00:04]} 61. Kd5 {[%clk 0:00:11]}  Bd2 {[%clk 0:00:04]} 62. Bd6+ {[%clk 0:00:11]}  Kd7 {[%clk 0:00:04]} 63. Bc5 {[%clk 0:00:11]}  Bf4 {[%clk 0:00:04]} 64. Bd6 {[%clk 0:00:11]}  Bg5 {[%clk 0:00:05]} 65. Bc5 {[%clk 0:00:11]}  Bd8 {[%clk 0:00:05]} 66. Bd6 {[%clk 0:00:12]}  Be7 {[%clk 0:00:05]} 67. Bxe7 {[%clk 0:00:06]}  Kxe7 {[%clk 0:00:06]} 68. Kd4 {[%clk 0:00:05]}  Ke6 {[%clk 0:00:06]} 69. Ke4 {[%clk 0:00:05]}  Kd7 {[%clk 0:00:06]} 70. Kd5 {[%clk 0:00:05]}  Ke7 {[%clk 0:00:06]} 71. Kd4 {[%clk 0:00:05]}  Ke6 {[%clk 0:00:06]} 72. Ke4 {[%clk 0:00:06]}  Ke7 {[%clk 0:00:06]} 73. Kd5 {[%clk 0:00:06]}  Kd7 {[%clk 0:00:07]} 74. Kd4 {[%clk 0:00:07]}  Kc6 {[%clk 0:00:08]} 75. Kc4 {[%clk 0:00:06]}  Kd7 {[%clk 0:00:05]} 76. Kd5 {[%clk 0:00:06]}  Ke7 {[%clk 0:00:05]} 1/2-1/2


[Site "https://www.chess.com"]

[Event "Titled Tuesday Blitz February 21 Late 2023"]
[White "Svane, Frederik"]
[Black "Stoyanov, Tsvetan"]
[WhiteFideId "12923044"]
[BlackFideId "2917173"]
[WhiteElo "2600"]
[BlackElo "2454"]
[Result "0-1"]
[Round "04"]
[TimeControl "180+2"]
[Date "2023.02.21"]
[WhiteClock "0:00:11"]
[BlackClock "0:00:10"]

1. c4 {[%clk 0:03:00]}  e5 {[%clk 0:02:59]} 2. d3 {[%clk 0:03:00]}  Nf6 {[%clk 0:02:59]} 3. Nf3 {[%clk 0:03:01]}  Nc6 {[%clk 0:02:59]} 4. Nc3 {[%clk 0:03:02]}  d5 {[%clk 0:02:56]} 5. cxd5 {[%clk 0:03:02]}  Nxd5 {[%clk 0:02:57]} 6. e4 {[%clk 0:03:03]}  Nb6 {[%clk 0:02:51]} 7. Be2 {[%clk 0:03:02]}  Be7 {[%clk 0:02:50]} 8. Be3 {[%clk 0:03:01]}  O-O {[%clk 0:02:40]} 9. O-O {[%clk 0:03:01]}  Be6 {[%clk 0:02:33]} 10. a4 {[%clk 0:02:48]}  a5 {[%clk 0:02:28]} 11. Rc1 {[%clk 0:02:41]}  f5 {[%clk 0:02:21]} 12. exf5 {[%clk 0:02:40]}  Bxf5 {[%clk 0:02:21]} 13. Qb3+ {[%clk 0:02:12]}  Kh8 {[%clk 0:02:21]} 14. Ne4 {[%clk 0:02:08]}  Nd4 {[%clk 0:02:15]} 15. Nxd4 {[%clk 0:01:20]}  exd4 {[%clk 0:02:16]} 16. Bf4 {[%clk 0:01:21]}  c6 {[%clk 0:02:08]} 17. Bg3 {[%clk 0:01:14]}  Bb4 {[%clk 0:02:01]} 18. Nc5 {[%clk 0:01:07]}  Qe7 {[%clk 0:01:54]} 19. Ne4 {[%clk 0:01:03]}  Bxe4 {[%clk 0:01:40]} 20. dxe4 {[%clk 0:01:04]}  Qxe4 {[%clk 0:01:41]} 21. Bd3 {[%clk 0:01:03]}  Qd5 {[%clk 0:01:41]} 22. Qc2 {[%clk 0:01:03]}  Qh5 {[%clk 0:01:32]} 23. Rfd1 {[%clk 0:00:56]}  Rae8 {[%clk 0:01:26]} 24. Bf1 {[%clk 0:00:53]}  c5 {[%clk 0:00:57]} 25. h3 {[%clk 0:00:44]}  Rc8 {[%clk 0:00:44]} 26. b3 {[%clk 0:00:43]}  Nd5 {[%clk 0:00:42]} 27. Bc4 {[%clk 0:00:37]}  Nf6 {[%clk 0:00:37]} 28. Be2 {[%clk 0:00:34]}  Qf7 {[%clk 0:00:32]} 29. Bf3 {[%clk 0:00:34]}  Rfe8 {[%clk 0:00:27]} 30. Qd3 {[%clk 0:00:34]}  b6 {[%clk 0:00:26]} 31. Rc4 {[%clk 0:00:31]}  Re6 {[%clk 0:00:24]} 32. Rc2 {[%clk 0:00:21]}  Rce8 {[%clk 0:00:24]} 33. Kh2 {[%clk 0:00:20]}  h6 {[%clk 0:00:23]} 34. Qc4 {[%clk 0:00:20]}  R6e7 {[%clk 0:00:22]} 35. Qb5 {[%clk 0:00:18]}  Qxb3 {[%clk 0:00:20]} 36. Rcc1 {[%clk 0:00:17]}  Qe6 {[%clk 0:00:14]} 37. Rb1 {[%clk 0:00:17]}  Bc3 {[%clk 0:00:10]} 38. Qxb6 {[%clk 0:00:16]}  Qxb6 {[%clk 0:00:11]} 39. Rxb6 {[%clk 0:00:17]}  Re1 {[%clk 0:00:10]} 40. Rxe1 {[%clk 0:00:16]}  Rxe1 {[%clk 0:00:11]} 41. Rd6 {[%clk 0:00:16]}  c4 {[%clk 0:00:09]} 42. Bh4 {[%clk 0:00:16]}  d3 {[%clk 0:00:09]} 43. Rc6 {[%clk 0:00:10]}  Be5+ {[%clk 0:00:09]} 44. g3 {[%clk 0:00:09]}  d2 {[%clk 0:00:10]} 45. Rc8+ {[%clk 0:00:09]}  Kh7 {[%clk 0:00:10]} 46. Rd8 {[%clk 0:00:09]}  c3 {[%clk 0:00:11]} 47. Bxf6 {[%clk 0:00:09]}  Bxf6 {[%clk 0:00:10]} 48. Bg4 {[%clk 0:00:10]}  Kg6 {[%clk 0:00:10]} 49. Rd5 {[%clk 0:00:10]}  Kf7 {[%clk 0:00:09]} 50. Bf5 {[%clk 0:00:10]}  d1=Q {[%clk 0:00:09]} 51. Rxd1 {[%clk 0:00:10]}  Rxd1 {[%clk 0:00:10]} 52. Kg2 {[%clk 0:00:10]}  Rd2 {[%clk 0:00:10]} 53. Be4 {[%clk 0:00:11]}  c2 {[%clk 0:00:10]} 0-1


[Site "https://www.chess.com"]

[Event "Titled Tuesday Blitz February 21 Late 2023"]
[White "Swiercz, Dariusz"]
[Black "Mendez Fortes, Eduardo Jesus"]
[WhiteFideId "1126881"]
[BlackFideId "3502376"]
[WhiteElo "2637"]
[BlackElo "2250"]
[Result "1-0"]
[Round "04"]
[TimeControl "180+2"]
[Date "2023.02.21"]
[WhiteClock "0:01:54"]
[BlackClock "0:01:00"]

1. d4 {[%clk 0:03:00]}  Nf6 {[%clk 0:02:59]} 2. Nf3 {[%clk 0:03:00]}  d5 {[%clk 0:02:59]} 3. c4 {[%clk 0:03:01]}  e6 {[%clk 0:03:00]} 4. e3 {[%clk 0:03:01]}  b6 {[%clk 0:02:54]} 5. cxd5 {[%clk 0:02:55]}  exd5 {[%clk 0:01:28]} 6. Bb5+ {[%clk 0:02:54]}  c6 {[%clk 0:01:28]} 7. Bd3 {[%clk 0:02:54]}  Bd6 {[%clk 0:01:28]} 8. b3 {[%clk 0:02:52]}  Nbd7 {[%clk 0:01:28]} 9. Bb2 {[%clk 0:02:52]}  Qe7 {[%clk 0:01:27]} 10. Nbd2 {[%clk 0:02:45]}  O-O {[%clk 0:01:26]} 11. O-O {[%clk 0:02:43]}  Ne4 {[%clk 0:01:24]} 12. Qc2 {[%clk 0:02:40]}  Ndf6 {[%clk 0:01:18]} 13. Ne5 {[%clk 0:02:20]}  Nxd2 {[%clk 0:01:06]} 14. Qxd2 {[%clk 0:02:20]}  c5 {[%clk 0:01:04]} 15. f4 {[%clk 0:02:17]}  Bb7 {[%clk 0:01:02]} 16. Rad1 {[%clk 0:02:11]}  Ne4 {[%clk 0:01:02]} 17. Bxe4 {[%clk 0:02:09]}  dxe4 {[%clk 0:01:03]} 18. Nc4 {[%clk 0:01:57]}  cxd4 {[%clk 0:01:00]} 19. Qxd4 {[%clk 0:01:54]} 1-0


[Site "https://www.chess.com"]

[Event "Titled Tuesday Blitz February 21 Late 2023"]
[White "Preotu, Razvan"]
[Black "Andreikin, Dmitry"]
[WhiteFideId "2613280"]
[BlackFideId "4158814"]
[WhiteElo "2475"]
[BlackElo "2729"]
[Result "0-1"]
[Round "04"]
[TimeControl "180+2"]
[Date "2023.02.21"]
[WhiteClock "0:00:19"]
[BlackClock "0:00:08"]

1. e4 {[%clk 0:03:00]}  c5 {[%clk 0:02:58]} 2. Nf3 {[%clk 0:03:00]}  e6 {[%clk 0:02:55]} 3. c3 {[%clk 0:03:00]}  Nf6 {[%clk 0:02:50]} 4. e5 {[%clk 0:03:00]}  Nd5 {[%clk 0:02:50]} 5. d4 {[%clk 0:03:01]}  cxd4 {[%clk 0:02:50]} 6. cxd4 {[%clk 0:03:02]}  b6 {[%clk 0:02:51]} 7. Bd2 {[%clk 0:03:01]}  Bb7 {[%clk 0:02:38]} 8. Nc3 {[%clk 0:03:01]}  Be7 {[%clk 0:02:35]} 9. Bd3 {[%clk 0:02:51]}  d6 {[%clk 0:02:23]} 10. Qe2 {[%clk 0:02:35]}  Nd7 {[%clk 0:02:14]} 11. Ne4 {[%clk 0:01:43]}  dxe5 {[%clk 0:02:10]} 12. dxe5 {[%clk 0:01:29]}  Nb4 {[%clk 0:02:08]} 13. Bxb4 {[%clk 0:01:29]}  Bxb4+ {[%clk 0:02:06]} 14. Kf1 {[%clk 0:01:30]}  Be7 {[%clk 0:02:01]} 15. h4 {[%clk 0:01:28]}  a6 {[%clk 0:01:52]} 16. Rh3 {[%clk 0:01:22]}  Qc7 {[%clk 0:01:51]} 17. Ned2 {[%clk 0:01:13]}  Nc5 {[%clk 0:01:14]} 18. Bc2 {[%clk 0:01:11]}  Rd8 {[%clk 0:01:13]} 19. Kg1 {[%clk 0:01:10]}  Qc6 {[%clk 0:01:01]} 20. b4 {[%clk 0:01:01]}  Na4 {[%clk 0:00:49]} 21. Be4 {[%clk 0:00:46]}  Qd7 {[%clk 0:00:48]} 22. Bxb7 {[%clk 0:00:44]}  Qxb7 {[%clk 0:00:49]} 23. Ne4 {[%clk 0:00:43]}  b5 {[%clk 0:00:39]} 24. Rg3 {[%clk 0:00:40]}  g6 {[%clk 0:00:39]} 25. h5 {[%clk 0:00:31]}  Qd5 {[%clk 0:00:37]} 26. Qe3 {[%clk 0:00:21]}  Qd3 {[%clk 0:00:22]} 27. Qf4 {[%clk 0:00:22]}  Nc3 {[%clk 0:00:21]} 28. Nf6+ {[%clk 0:00:20]}  Bxf6 {[%clk 0:00:21]} 29. Qxf6 {[%clk 0:00:21]}  Rf8 {[%clk 0:00:18]} 30. Ng5 {[%clk 0:00:21]}  Ne2+ {[%clk 0:00:17]} 31. Kh2 {[%clk 0:00:20]}  Nxg3 {[%clk 0:00:18]} 32. fxg3 {[%clk 0:00:20]}  gxh5 {[%clk 0:00:14]} 33. Nxe6 {[%clk 0:00:19]}  Rg8 {[%clk 0:00:07]} 34. Rf1 {[%clk 0:00:19]}  Qxg3+ {[%clk 0:00:07]} 35. Kh1 {[%clk 0:00:19]}  Qxg2# {[%clk 0:00:08]} 0-1


[Site "https://www.chess.com"]